[Event "December 19 Late 2023"]
[Site "https://www.chess.com"]
[Date "2023.12.19"]
[Round "6"]
[White "Ghosh, Chanchal Kumer"]
[Black "Wu, Sibo"]
[Result "0-1"]
[Board "151"]
[TimeControl "180+1"]
[WhiteFideId "10201858"]
[BlackFideId "8606048"]
[WhiteElo "2067"]
[BlackElo "2410"]
[WhiteTeam "BAN"]
[BlackTeam "CHN"]
[WhiteClock "0:02:22"]
[BlackClock "0:02:44"]

1. e4 {[%clk 0:02:55]}  c5 {[%clk 0:02:59]} 2. Nf3 {[%clk 0:02:54]}  Nc6 {[%clk 0:03:00]} 3. d4 {[%clk 0:02:54]}  cxd4 {[%clk 0:03:00]} 4. Nxd4 {[%clk 0:02:55]}  Nf6 {[%clk 0:03:01]} 5. Nc3 {[%clk 0:02:55]}  e5 {[%clk 0:03:00]} 6. Nxc6 {[%clk 0:02:53]}  bxc6 {[%clk 0:03:00]} 7. Be2 {[%clk 0:02:53]}  Bb4 {[%clk 0:02:57]} 8. Bg5 {[%clk 0:02:49]}  Qa5 {[%clk 0:02:51]} 9. Bxf6 {[%clk 0:02:40]}  Bxc3+ {[%clk 0:02:51]} 10. bxc3 {[%clk 0:02:28]}  Qxc3+ {[%clk 0:02:50]} 11. Kf1 {[%clk 0:02:28]}  gxf6 {[%clk 0:02:50]} 12. Qd6 {[%clk 0:02:26]}  Qxa1+ {[%clk 0:02:49]} 13. Bd1 {[%clk 0:02:27]}  Ba6+ {[%clk 0:02:44]} 14. Ke1 {[%clk 0:02:22]}  Qc3+ {[%clk 0:02:44]} 0-1

[Event "December 19 Late 2023"]
[Site "https://www.chess.com"]
[Date "2023.12.19"]
[Round "6"]
[White "Gulamirian, Korun"]
[Black "Vila Dupla, Aurelio"]
[Result "0-1"]
[Board "152"]
[TimeControl "180+1"]
[WhiteFideId "4144899"]
[BlackFideId "2203383"]
[WhiteElo "1621"]
[BlackElo "2009"]
[WhiteTeam "RUS"]
[BlackTeam "ESP"]
[WhiteClock "0:00:00"]
[BlackClock "0:00:13"]

1. e4 {[%clk 0:02:57]}  c5 {[%clk 0:02:59]} 2. Nf3 {[%clk 0:02:54]}  d6 {[%clk 0:02:59]} 3. d4 {[%clk 0:02:54]}  cxd4 {[%clk 0:03:00]} 4. Nxd4 {[%clk 0:02:54]}  Nf6 {[%clk 0:02:59]} 5. Nc3 {[%clk 0:02:53]}  g6 {[%clk 0:02:59]} 6. Be3 {[%clk 0:02:52]}  Bg7 {[%clk 0:02:59]} 7. f3 {[%clk 0:02:52]}  O-O {[%clk 0:02:59]} 8. Qd2 {[%clk 0:02:52]}  Nc6 {[%clk 0:03:00]} 9. O-O-O {[%clk 0:02:51]}  Nxd4 {[%clk 0:03:01]} 10. Bxd4 {[%clk 0:02:50]}  Be6 {[%clk 0:03:01]} 11. Be3 {[%clk 0:02:50]}  Qa5 {[%clk 0:02:58]} 12. Kb1 {[%clk 0:02:47]}  Rfc8 {[%clk 0:02:55]} 13. a3 {[%clk 0:02:42]}  Bc4 {[%clk 0:02:21]} 14. Bxc4 {[%clk 0:02:28]}  Rxc4 {[%clk 0:02:21]} 15. Nd5 {[%clk 0:02:24]}  Qxd2 {[%clk 0:02:19]} 16. Rxd2 {[%clk 0:02:23]}  Nxd5 {[%clk 0:02:17]} 17. Rxd5 {[%clk 0:02:21]}  Rac8 {[%clk 0:02:08]} 18. Rc1 {[%clk 0:02:14]}  a6 {[%clk 0:02:03]} 19. g4 {[%clk 0:01:55]}  b5 {[%clk 0:01:56]} 20. Bd2 {[%clk 0:01:51]}  Be5 {[%clk 0:01:53]} 21. f4 {[%clk 0:01:44]}  Bg7 {[%clk 0:01:51]} 22. e5 {[%clk 0:01:40]}  dxe5 {[%clk 0:01:50]} 23. fxe5 {[%clk 0:01:40]}  Rxg4 {[%clk 0:01:45]} 24. Rd7 {[%clk 0:01:38]}  Bxe5 {[%clk 0:01:26]} 25. Rxe7 {[%clk 0:01:37]}  Bf6 {[%clk 0:01:26]} 26. Ra7 {[%clk 0:01:36]}  Rg2 {[%clk 0:01:20]} 27. Bf4 {[%clk 0:01:31]}  Rg4 {[%clk 0:01:03]} 28. Bg3 {[%clk 0:01:28]}  Rc6 {[%clk 0:01:03]} 29. c3 {[%clk 0:01:19]}  Re4 {[%clk 0:00:58]} 30. Rd1 {[%clk 0:01:18]}  Be5 {[%clk 0:00:40]} 31. Rdd7 {[%clk 0:01:10]}  Rf6 {[%clk 0:00:37]} 32. Bxe5 {[%clk 0:01:04]}  Rxe5 {[%clk 0:00:37]} 33. h4 {[%clk 0:01:03]}  Rf2 {[%clk 0:00:37]} 34. Rd6 {[%clk 0:00:58]}  Ree2 {[%clk 0:00:29]} 35. Raxa6 {[%clk 0:00:54]}  Rxb2+ {[%clk 0:00:29]} 36. Kc1 {[%clk 0:00:54]}  Rbc2+ {[%clk 0:00:27]} 37. Kd1 {[%clk 0:00:54]}  Rxc3 {[%clk 0:00:27]} 38. Rd2 {[%clk 0:00:47]}  Rxd2+ {[%clk 0:00:23]} 39. Kxd2 {[%clk 0:00:48]}  Rh3 {[%clk 0:00:22]} 40. Ra5 {[%clk 0:00:45]}  Rxh4 {[%clk 0:00:21]} 41. Rxb5 {[%clk 0:00:46]}  Ra4 {[%clk 0:00:21]} 42. Rb3 {[%clk 0:00:45]}  Kg7 {[%clk 0:00:21]} 43. Kc2 {[%clk 0:00:41]}  h5 {[%clk 0:00:20]} 44. Re3 {[%clk 0:00:41]}  g5 {[%clk 0:00:20]} 45. Kb3 {[%clk 0:00:42]}  Ra8 {[%clk 0:00:19]} 46. a4 {[%clk 0:00:40]}  Kg6 {[%clk 0:00:19]} 47. Kb4 {[%clk 0:00:39]}  h4 {[%clk 0:00:18]} 48. a5 {[%clk 0:00:39]}  f5 {[%clk 0:00:18]} 49. Re6+ {[%clk 0:00:37]}  Kh5 {[%clk 0:00:17]} 50. a6 {[%clk 0:00:37]}  Kg4 {[%clk 0:00:17]} 51. Kc3 {[%clk 0:00:34]}  h3 {[%clk 0:00:16]} 52. Kd2 {[%clk 0:00:34]}  f4 {[%clk 0:00:15]} 53. Ke1 {[%clk 0:00:32]}  Kg3 {[%clk 0:00:15]} 54. Kf1 {[%clk 0:00:32]}  g4 {[%clk 0:00:15]} 55. Kg1 {[%clk 0:00:31]}  f3 {[%clk 0:00:16]} 56. Rf6 {[%clk 0:00:22]}  Rc8 {[%clk 0:00:14]} 57. Rxf3+ {[%clk 0:00:00]}  gxf3 {[%clk 0:00:13]} 0-1

[Event "December 19 Late 2023"]
[Site "https://www.chess.com"]
[Date "2023.12.19"]
[Round "6"]
[White "Desideri, Ricardo Maruchi"]
[Black "Guevara Sanchez, Erick Marvin"]
[Result "0-1"]
[Board "153"]
[TimeControl "180+1"]
[WhiteFideId "2110440"]
[BlackFideId "6700136"]
[WhiteElo "1945"]
[BlackElo "2040"]
[WhiteTeam "BRA"]
[BlackTeam "ESA"]
[WhiteClock "0:00:30"]
[BlackClock "0:00:47"]

1. e4 {[%clk 0:02:55]}  c5 {[%clk 0:02:59]} 2. Nf3 {[%clk 0:02:55]}  Nc6 {[%clk 0:02:59]} 3. d4 {[%clk 0:02:54]}  cxd4 {[%clk 0:03:00]} 4. Nxd4 {[%clk 0:02:54]}  e5 {[%clk 0:03:00]} 5. Nb5 {[%clk 0:02:53]}  d6 {[%clk 0:03:00]} 6. c4 {[%clk 0:02:50]}  Be7 {[%clk 0:02:59]} 7. Be3 {[%clk 0:02:48]}  f5 {[%clk 0:02:54]} 8. f3 {[%clk 0:02:37]}  Nf6 {[%clk 0:02:49]} 9. N1c3 {[%clk 0:02:35]}  a6 {[%clk 0:02:48]} 10. Na3 {[%clk 0:02:33]}  fxe4 {[%clk 0:02:46]} 11. fxe4 {[%clk 0:02:33]}  O-O {[%clk 0:02:45]} 12. Be2 {[%clk 0:02:31]}  Qe8 {[%clk 0:02:29]} 13. O-O {[%clk 0:02:30]}  Qg6 {[%clk 0:02:29]} 14. Bf3 {[%clk 0:02:22]}  Bg4 {[%clk 0:02:21]} 15. Nd5 {[%clk 0:02:19]}  Nxd5 {[%clk 0:02:16]} 16. cxd5 {[%clk 0:02:14]}  Bxf3 {[%clk 0:02:14]} 17. Rxf3 {[%clk 0:02:08]}  Rxf3 {[%clk 0:02:13]} 18. Qxf3 {[%clk 0:02:07]}  Nd4 {[%clk 0:02:11]} 19. Bxd4 {[%clk 0:02:07]}  exd4 {[%clk 0:02:11]} 20. Qd3 {[%clk 0:01:57]}  Bf6 {[%clk 0:02:09]} 21. Nc4 {[%clk 0:01:54]}  Rd8 {[%clk 0:01:54]} 22. Re1 {[%clk 0:01:50]}  b5 {[%clk 0:01:41]} 23. Na5 {[%clk 0:01:47]}  Be5 {[%clk 0:01:40]} 24. Nc6 {[%clk 0:01:46]}  Rf8 {[%clk 0:01:35]} 25. Ne7+ {[%clk 0:01:38]}  Kf7 {[%clk 0:01:32]} 26. Nxg6 {[%clk 0:01:38]}  Kxg6 {[%clk 0:01:31]} 27. Rf1 {[%clk 0:01:33]}  Rc8 {[%clk 0:01:25]} 28. Qh3 {[%clk 0:01:29]}  Rc2 {[%clk 0:01:20]} 29. Qf5+ {[%clk 0:01:13]}  Kh6 {[%clk 0:01:19]} 30. Rf3 {[%clk 0:00:59]}  g6 {[%clk 0:01:17]} 31. Rh3+ {[%clk 0:00:54]}  Kg7 {[%clk 0:01:16]} 32. Qd7+ {[%clk 0:00:55]}  Kf6 {[%clk 0:01:15]} 33. Qe6+ {[%clk 0:00:54]}  Kg5 {[%clk 0:01:14]} 34. Rxh7 {[%clk 0:00:44]}  Rc1+ {[%clk 0:01:07]} 35. Kf2 {[%clk 0:00:43]}  Rc2+ {[%clk 0:01:07]} 36. Ke1 {[%clk 0:00:43]}  Rc1+ {[%clk 0:01:06]} 37. Kd2 {[%clk 0:00:43]}  Bf4+ {[%clk 0:01:05]} 38. Kd3 {[%clk 0:00:33]}  Rd1+ {[%clk 0:00:53]} 39. Kc2 {[%clk 0:00:33]}  Rd2+ {[%clk 0:00:49]} 40. Kb3 {[%clk 0:00:32]}  Rd3+ {[%clk 0:00:48]} 41. Kb4 {[%clk 0:00:30]}  Bd2# {[%clk 0:00:47]} 0-1

[Event "December 19 Late 2023"]
[Site "https://www.chess.com"]
[Date "2023.12.19"]
[Round "7"]
[White "Niemann, Hans Moke"]
[Black "Yeletsky, Ivan"]
[Result "1-0"]
[Board "3"]
[TimeControl "180+1"]
[WhiteFideId "2093596"]
[BlackFideId "24180327"]
[WhiteElo "2614"]
[BlackElo "2379"]
[WhiteTeam "USA"]
[BlackTeam "RUS"]
[WhiteClock "0:01:04"]
[BlackClock "0:00:00"]

1. e4 {[%clk 0:02:58]}  c5 {[%clk 0:02:59]} 2. Nf3 {[%clk 0:02:56]}  e6 {[%clk 0:03:00]} 3. b3 {[%clk 0:02:56]}  Nc6 {[%clk 0:02:59]} 4. Bb2 {[%clk 0:02:56]}  a6 {[%clk 0:02:59]} 5. c4 {[%clk 0:02:57]}  Nf6 {[%clk 0:02:59]} 6. e5 {[%clk 0:02:56]}  Ng4 {[%clk 0:02:59]} 7. g3 {[%clk 0:02:56]}  Qc7 {[%clk 0:02:46]} 8. Bg2 {[%clk 0:02:55]}  Ngxe5 {[%clk 0:02:41]} 9. Nxe5 {[%clk 0:02:55]}  Nxe5 {[%clk 0:02:42]} 10. O-O {[%clk 0:02:55]}  Nc6 {[%clk 0:02:38]} 11. Re1 {[%clk 0:02:53]}  b6 {[%clk 0:02:28]} 12. Nc3 {[%clk 0:02:52]}  Be7 {[%clk 0:02:10]} 13. Nd5 {[%clk 0:02:47]}  exd5 {[%clk 0:02:11]} 14. cxd5 {[%clk 0:02:48]}  O-O {[%clk 0:02:12]} 15. Qg4 {[%clk 0:02:39]}  f6 {[%clk 0:01:53]} 16. dxc6 {[%clk 0:02:11]}  dxc6 {[%clk 0:01:54]} 17. Qc4+ {[%clk 0:02:01]}  Kh8 {[%clk 0:01:54]} 18. Qe4 {[%clk 0:02:00]}  Bd6 {[%clk 0:01:52]} 19. Qxc6 {[%clk 0:02:00]}  Qxc6 {[%clk 0:01:52]} 20. Bxc6 {[%clk 0:02:00]}  Ra7 {[%clk 0:01:53]} 21. d4 {[%clk 0:02:01]}  cxd4 {[%clk 0:01:43]} 22. Bxd4 {[%clk 0:02:00]}  Rc7 {[%clk 0:01:43]} 23. Rac1 {[%clk 0:01:57]}  b5 {[%clk 0:01:13]} 24. Bb6 {[%clk 0:01:41]}  Re7 {[%clk 0:01:13]} 25. Rxe7 {[%clk 0:01:40]}  Bxe7 {[%clk 0:01:13]} 26. Bf3 {[%clk 0:01:31]}  Bh3 {[%clk 0:01:10]} 27. a4 {[%clk 0:01:22]}  Bb4 {[%clk 0:00:55]} 28. a5 {[%clk 0:01:15]}  g5 {[%clk 0:00:50]} 29. Bb7 {[%clk 0:01:15]}  Re8 {[%clk 0:00:09]} 30. Bxa6 {[%clk 0:01:12]}  Re2 {[%clk 0:00:06]} 31. Bxb5 {[%clk 0:01:08]}  Ra2 {[%clk 0:00:06]} 32. a6 {[%clk 0:01:09]}  Bd2 {[%clk 0:00:03]} 33. Rd1 {[%clk 0:01:08]}  Bg4 {[%clk 0:00:03]} 34. Rf1 {[%clk 0:01:04]}  Bh3 {[%clk 0:00:03]} 35. a7 {[%clk 0:01:04]}  Bxf1 {[%clk 0:00:03]} 36. Kxf1 {[%clk 0:01:05]}  Ra1+ {[%clk 0:00:00]} 37. Ke2 {[%clk 0:01:04]} 1-0

[Event "December 19 Late 2023"]
[Site "https://www.chess.com"]
[Date "2023.12.19"]
[Round "7"]
[White "Tari, Aryan"]
[Black "Fedoseev, Vladimir"]
[Result "1-0"]
[Board "4"]
[TimeControl "180+1"]
[WhiteFideId "1510045"]
[BlackFideId "24130737"]
[WhiteElo "2577"]
[BlackElo "2719"]
[WhiteTeam "NOR"]
[BlackTeam "SLO"]
[WhiteClock "0:00:21"]
[BlackClock "0:00:00"]

1. e4 {[%clk 0:03:00]}  e5 {[%clk 0:02:58]} 2. Nf3 {[%clk 0:03:00]}  Nc6 {[%clk 0:02:59]} 3. Nc3 {[%clk 0:02:59]}  Nge7 {[%clk 0:02:49]} 4. Bc4 {[%clk 0:02:55]}  Ng6 {[%clk 0:02:48]} 5. h4 {[%clk 0:02:52]}  Be7 {[%clk 0:02:15]} 6. d3 {[%clk 0:02:43]}  h6 {[%clk 0:02:08]} 7. h5 {[%clk 0:02:40]}  Nf8 {[%clk 0:02:07]} 8. Nd5 {[%clk 0:02:07]}  d6 {[%clk 0:02:06]} 9. c3 {[%clk 0:02:07]}  Nh7 {[%clk 0:02:01]} 10. Ne3 {[%clk 0:02:00]}  Na5 {[%clk 0:01:56]} 11. Bb5+ {[%clk 0:01:58]}  c6 {[%clk 0:01:56]} 12. Ba4 {[%clk 0:01:58]}  b5 {[%clk 0:01:56]} 13. Bc2 {[%clk 0:01:59]}  O-O {[%clk 0:01:56]} 14. g4 {[%clk 0:01:57]}  Bf6 {[%clk 0:01:52]} 15. Nf5 {[%clk 0:01:55]}  d5 {[%clk 0:01:52]} 16. Qe2 {[%clk 0:01:55]}  Bxf5 {[%clk 0:01:46]} 17. gxf5 {[%clk 0:01:54]}  Re8 {[%clk 0:01:46]} 18. Rg1 {[%clk 0:01:51]}  Kh8 {[%clk 0:01:46]} 19. Bd2 {[%clk 0:01:45]}  c5 {[%clk 0:01:37]} 20. exd5 {[%clk 0:01:12]}  Qxd5 {[%clk 0:01:36]} 21. c4 {[%clk 0:01:11]}  bxc4 {[%clk 0:01:29]} 22. Bxa5 {[%clk 0:00:52]}  cxd3 {[%clk 0:01:29]} 23. Qxd3 {[%clk 0:00:53]}  Qxd3 {[%clk 0:01:26]} 24. Bxd3 {[%clk 0:00:54]}  e4 {[%clk 0:01:26]} 25. Bb5 {[%clk 0:00:54]}  exf3+ {[%clk 0:01:24]} 26. Bxe8 {[%clk 0:00:54]}  Rxe8+ {[%clk 0:01:25]} 27. Kf1 {[%clk 0:00:55]}  Bxb2 {[%clk 0:01:21]} 28. Re1 {[%clk 0:00:55]}  Rc8 {[%clk 0:01:21]} 29. Rg3 {[%clk 0:00:47]}  c4 {[%clk 0:01:14]} 30. Rxf3 {[%clk 0:00:44]}  Nf6 {[%clk 0:00:57]} 31. Bc3 {[%clk 0:00:42]}  Bxc3 {[%clk 0:00:56]} 32. Rxc3 {[%clk 0:00:43]}  Nd5 {[%clk 0:00:57]} 33. Rcc1 {[%clk 0:00:38]}  c3 {[%clk 0:00:56]} 34. Re4 {[%clk 0:00:36]}  Rc5 {[%clk 0:00:50]} 35. Ke2 {[%clk 0:00:35]}  Kh7 {[%clk 0:00:44]} 36. Kd3 {[%clk 0:00:33]}  a5 {[%clk 0:00:43]} 37. Kd4 {[%clk 0:00:31]}  Nf6 {[%clk 0:00:28]} 38. Kxc5 {[%clk 0:00:31]}  Nxe4+ {[%clk 0:00:28]} 39. Kd4 {[%clk 0:00:31]}  Nxf2 {[%clk 0:00:25]} 40. Rxc3 {[%clk 0:00:31]}  Ng4 {[%clk 0:00:20]} 41. Ra3 {[%clk 0:00:29]}  g6 {[%clk 0:00:16]} 42. fxg6+ {[%clk 0:00:27]}  fxg6 {[%clk 0:00:17]} 43. Rxa5 {[%clk 0:00:24]}  gxh5 {[%clk 0:00:17]} 44. Rxh5 {[%clk 0:00:25]}  Kg6 {[%clk 0:00:18]} 45. Rh1 {[%clk 0:00:24]}  h5 {[%clk 0:00:14]} 46. a4 {[%clk 0:00:24]}  Nf6 {[%clk 0:00:14]} 47. a5 {[%clk 0:00:24]}  Nd7 {[%clk 0:00:14]} 48. a6 {[%clk 0:00:23]}  Nb8 {[%clk 0:00:14]} 49. Ra1 {[%clk 0:00:21]}  Kf5 {[%clk 0:00:13]} 50. a7 {[%clk 0:00:18]}  Nc6+ {[%clk 0:00:13]} 51. Ke3 {[%clk 0:00:19]}  Nxa7 {[%clk 0:00:12]} 52. Rxa7 {[%clk 0:00:20]}  Kg4 {[%clk 0:00:12]} 53. Kf2 {[%clk 0:00:20]}  Kh3 {[%clk 0:00:13]} 54. Kg1 {[%clk 0:00:21]}  h4 {[%clk 0:00:00]} 55. Ra3+ {[%clk 0:00:21]} 1-0

[Event "December 19 Late 2023"]
[Site "https://www.chess.com"]
[Date "2023.12.19"]
[Round "7"]
[White "Keymer, Vincent"]
[Black "Kovalev, Vladislav"]
[Result "1/2-1/2"]
[Board "5"]
[TimeControl "180+1"]
[WhiteFideId "12940690"]
[BlackFideId "13504398"]
[WhiteElo "2629"]
[BlackElo "2539"]
[WhiteTeam "GER"]
[BlackTeam "FID"]
[WhiteClock "0:00:18"]
[BlackClock "0:00:17"]

1. Nf3 {[%clk 0:03:00]}  Nf6 {[%clk 0:02:58]} 2. c4 {[%clk 0:03:01]}  e6 {[%clk 0:02:59]} 3. Nc3 {[%clk 0:03:01]}  d5 {[%clk 0:02:59]} 4. e3 {[%clk 0:03:02]}  a6 {[%clk 0:02:52]} 5. b3 {[%clk 0:03:02]}  b6 {[%clk 0:02:48]} 6. cxd5 {[%clk 0:03:01]}  Nxd5 {[%clk 0:02:47]} 7. Nxd5 {[%clk 0:02:57]}  Qxd5 {[%clk 0:02:48]} 8. Bb2 {[%clk 0:02:58]}  Bb7 {[%clk 0:02:48]} 9. Qc2 {[%clk 0:02:36]}  c5 {[%clk 0:02:45]} 10. Be2 {[%clk 0:02:33]}  Nd7 {[%clk 0:02:19]} 11. O-O {[%clk 0:02:20]}  Nf6 {[%clk 0:02:20]} 12. Rfd1 {[%clk 0:02:19]}  Be7 {[%clk 0:02:12]} 13. d4 {[%clk 0:02:19]}  O-O {[%clk 0:02:07]} 14. Rac1 {[%clk 0:02:12]}  Rfd8 {[%clk 0:01:34]} 15. dxc5 {[%clk 0:01:48]}  Qxc5 {[%clk 0:01:35]} 16. Qxc5 {[%clk 0:01:48]}  Bxc5 {[%clk 0:01:32]} 17. Ne5 {[%clk 0:01:47]}  Kf8 {[%clk 0:01:08]} 18. Nd3 {[%clk 0:01:16]}  Bd6 {[%clk 0:01:03]} 19. f3 {[%clk 0:01:17]}  Rac8 {[%clk 0:00:52]} 20. e4 {[%clk 0:01:12]}  Rxc1 {[%clk 0:00:51]} 21. Rxc1 {[%clk 0:01:12]}  Nd7 {[%clk 0:00:50]} 22. h4 {[%clk 0:01:00]}  e5 {[%clk 0:00:41]} 23. b4 {[%clk 0:00:44]}  f6 {[%clk 0:00:38]} 24. a3 {[%clk 0:00:44]}  Ke7 {[%clk 0:00:37]} 25. Nf2 {[%clk 0:00:38]}  Rc8 {[%clk 0:00:32]} 26. Rxc8 {[%clk 0:00:25]}  Bxc8 {[%clk 0:00:33]} 27. Nd1 {[%clk 0:00:26]}  Nb8 {[%clk 0:00:24]} 28. Ne3 {[%clk 0:00:24]}  Be6 {[%clk 0:00:25]} 29. g4 {[%clk 0:00:20]}  g6 {[%clk 0:00:19]} 30. g5 {[%clk 0:00:20]}  fxg5 {[%clk 0:00:15]} 31. hxg5 {[%clk 0:00:20]}  b5 {[%clk 0:00:16]} 32. Kf2 {[%clk 0:00:20]}  Nc6 {[%clk 0:00:16]} 33. Bf1 {[%clk 0:00:19]}  Kd7 {[%clk 0:00:15]} 34. Kg3 {[%clk 0:00:19]}  Be7 {[%clk 0:00:15]} 35. Ng4 {[%clk 0:00:17]}  Bxg5 {[%clk 0:00:12]} 36. Nxe5+ {[%clk 0:00:17]}  Nxe5 {[%clk 0:00:13]} 37. Bxe5 {[%clk 0:00:18]}  Bc1 {[%clk 0:00:14]} 38. Bc3 {[%clk 0:00:13]}  Bxa3 {[%clk 0:00:13]} 39. f4 {[%clk 0:00:13]}  Bc1 {[%clk 0:00:10]} 40. Bd3 {[%clk 0:00:13]}  Ke7 {[%clk 0:00:06]} 41. f5 {[%clk 0:00:12]}  Bc4 {[%clk 0:00:06]} 42. Bc2 {[%clk 0:00:10]}  Bg5 {[%clk 0:00:05]} 43. Kg4 {[%clk 0:00:09]}  Be3 {[%clk 0:00:05]} 44. e5 {[%clk 0:00:08]}  gxf5+ {[%clk 0:00:05]} 45. Bxf5 {[%clk 0:00:07]}  Be6 {[%clk 0:00:05]} 46. Kf3 {[%clk 0:00:06]}  Bxf5 {[%clk 0:00:03]} 47. Kxe3 {[%clk 0:00:07]}  Ke6 {[%clk 0:00:04]} 48. Kf4 {[%clk 0:00:07]}  h5 {[%clk 0:00:04]} 49. Bd4 {[%clk 0:00:07]}  h4 {[%clk 0:00:03]} 50. Bb6 {[%clk 0:00:08]}  h3 {[%clk 0:00:04]} 51. Kg3 {[%clk 0:00:06]}  Kxe5 {[%clk 0:00:04]} 52. Ba5 {[%clk 0:00:06]}  Be6 {[%clk 0:00:05]} 53. Kh2 {[%clk 0:00:06]}  Ke4 {[%clk 0:00:06]} 54. Kg3 {[%clk 0:00:07]}  Kd3 {[%clk 0:00:06]} 55. Kh2 {[%clk 0:00:08]}  Kc3 {[%clk 0:00:06]} 56. Kg3 {[%clk 0:00:08]}  Kd2 {[%clk 0:00:07]} 57. Kh2 {[%clk 0:00:09]}  Ke2 {[%clk 0:00:08]} 58. Kg3 {[%clk 0:00:10]}  Kf1 {[%clk 0:00:09]} 59. Kh2 {[%clk 0:00:10]}  Kf2 {[%clk 0:00:09]} 60. Bb6+ {[%clk 0:00:11]}  Kf3 {[%clk 0:00:10]} 61. Ba5 {[%clk 0:00:12]}  Bf5 {[%clk 0:00:10]} 62. Bb6 {[%clk 0:00:12]}  Kg4 {[%clk 0:00:11]} 63. Ba5 {[%clk 0:00:13]}  Be4 {[%clk 0:00:12]} 64. Bb6 {[%clk 0:00:14]}  Bd3 {[%clk 0:00:13]} 65. Ba5 {[%clk 0:00:15]}  Bc4 {[%clk 0:00:14]} 66. Bb6 {[%clk 0:00:15]}  Kh4 {[%clk 0:00:14]} 67. Ba5 {[%clk 0:00:16]}  Kg4 {[%clk 0:00:15]} 68. Bb6 {[%clk 0:00:17]}  Bb3 {[%clk 0:00:16]} 69. Ba5 {[%clk 0:00:18]}  Bc4 {[%clk 0:00:17]} 1/2-1/2

[Event "December 19 Late 2023"]
[Site "https://www.chess.com"]
[Date "2023.12.19"]
[Round "7"]
[White "Bortnyk, Mykola"]
[Black "Kamsky, Gata"]
[Result "0-1"]
[Board "7"]
[TimeControl "180+1"]
[WhiteFideId "14120836"]
[BlackFideId "2000024"]
[WhiteElo "2592"]
[BlackElo "2660"]
[WhiteTeam "UKR"]
[BlackTeam "USA"]
[WhiteClock "0:00:02"]
[BlackClock "0:00:09"]

1. e4 {[%clk 0:03:00]}  c5 {[%clk 0:02:59]} 2. c3 {[%clk 0:03:00]}  Nf6 {[%clk 0:02:56]} 3. e5 {[%clk 0:03:01]}  Nd5 {[%clk 0:02:56]} 4. Bc4 {[%clk 0:03:02]}  Nb6 {[%clk 0:02:53]} 5. Bb3 {[%clk 0:03:02]}  d5 {[%clk 0:02:52]} 6. exd6 {[%clk 0:03:00]}  Qxd6 {[%clk 0:02:52]} 7. Nf3 {[%clk 0:03:01]}  Be6 {[%clk 0:02:47]} 8. O-O {[%clk 0:02:57]}  Nc6 {[%clk 0:02:45]} 9. Na3 {[%clk 0:02:55]}  a6 {[%clk 0:02:39]} 10. Re1 {[%clk 0:02:52]}  Bd5 {[%clk 0:02:36]} 11. d4 {[%clk 0:02:49]}  cxd4 {[%clk 0:02:05]} 12. Nxd4 {[%clk 0:02:40]}  Bxb3 {[%clk 0:01:51]} 13. Qxb3 {[%clk 0:02:35]}  Nxd4 {[%clk 0:01:51]} 14. cxd4 {[%clk 0:02:34]}  e6 {[%clk 0:01:50]} 15. Bf4 {[%clk 0:02:21]}  Qxf4 {[%clk 0:01:48]} 16. Qxb6 {[%clk 0:02:21]}  Bxa3 {[%clk 0:01:48]} 17. bxa3 {[%clk 0:02:13]}  O-O {[%clk 0:01:48]} 18. g3 {[%clk 0:01:57]}  Qf3 {[%clk 0:01:39]} 19. Re3 {[%clk 0:01:57]}  Qd5 {[%clk 0:01:37]} 20. Re5 {[%clk 0:01:56]}  Qd7 {[%clk 0:01:30]} 21. Rd1 {[%clk 0:01:51]}  Rfd8 {[%clk 0:01:29]} 22. d5 {[%clk 0:01:50]}  Qd6 {[%clk 0:01:18]} 23. Qb2 {[%clk 0:01:30]}  b5 {[%clk 0:01:10]} 24. Rg5 {[%clk 0:01:26]}  g6 {[%clk 0:01:09]} 25. h4 {[%clk 0:01:24]}  exd5 {[%clk 0:01:08]} 26. h5 {[%clk 0:01:19]}  d4 {[%clk 0:01:08]} 27. Rg4 {[%clk 0:01:17]}  d3 {[%clk 0:00:57]} 28. h6 {[%clk 0:01:17]}  Qf8 {[%clk 0:00:56]} 29. Rh4 {[%clk 0:01:09]}  Rd6 {[%clk 0:00:54]} 30. Rd2 {[%clk 0:01:05]}  Rad8 {[%clk 0:00:54]} 31. Qc3 {[%clk 0:01:05]}  g5 {[%clk 0:00:46]} 32. Rh5 {[%clk 0:01:02]}  f6 {[%clk 0:00:41]} 33. g4 {[%clk 0:01:00]}  Qe7 {[%clk 0:00:40]} 34. Rh3 {[%clk 0:01:00]}  Qe6 {[%clk 0:00:40]} 35. Rdxd3 {[%clk 0:00:43]}  Rxd3 {[%clk 0:00:37]} 36. Rxd3 {[%clk 0:00:43]}  Qxg4+ {[%clk 0:00:33]} 37. Rg3 {[%clk 0:00:35]}  Qe4 {[%clk 0:00:30]} 38. Qb3+ {[%clk 0:00:34]}  Kf8 {[%clk 0:00:24]} 39. Rf3 {[%clk 0:00:31]}  Qg4+ {[%clk 0:00:20]} 40. Kf1 {[%clk 0:00:32]}  Rd6 {[%clk 0:00:18]} 41. Qe3 {[%clk 0:00:18]}  Kf7 {[%clk 0:00:16]} 42. Qe2 {[%clk 0:00:15]}  Qc4 {[%clk 0:00:15]} 43. Re3 {[%clk 0:00:11]}  Qxe2+ {[%clk 0:00:15]} 44. Rxe2 {[%clk 0:00:11]}  Kg6 {[%clk 0:00:15]} 45. a4 {[%clk 0:00:09]}  bxa4 {[%clk 0:00:15]} 46. Re4 {[%clk 0:00:09]}  Kxh6 {[%clk 0:00:15]} 47. Rxa4 {[%clk 0:00:10]}  Kg6 {[%clk 0:00:15]} 48. Kg2 {[%clk 0:00:11]}  h5 {[%clk 0:00:15]} 49. Kh3 {[%clk 0:00:12]}  h4 {[%clk 0:00:14]} 50. f3 {[%clk 0:00:11]}  Kh5 {[%clk 0:00:14]} 51. Ra5 {[%clk 0:00:10]}  Rd3 {[%clk 0:00:09]} 52. Kg2 {[%clk 0:00:11]}  Rd2+ {[%clk 0:00:09]} 53. Kh3 {[%clk 0:00:11]}  Rf2 {[%clk 0:00:08]} 54. Rxa6 {[%clk 0:00:06]}  Rxf3+ {[%clk 0:00:08]} 55. Kg2 {[%clk 0:00:07]}  g4 {[%clk 0:00:08]} 56. a4 {[%clk 0:00:06]}  h3+ {[%clk 0:00:09]} 57. Kg1 {[%clk 0:00:06]}  g3 {[%clk 0:00:09]} 58. Ra8 {[%clk 0:00:05]}  Rf2 {[%clk 0:00:09]} 59. Rh8+ {[%clk 0:00:03]}  Kg4 {[%clk 0:00:09]} 60. Rh6 {[%clk 0:00:02]}  h2+ {[%clk 0:00:09]} 0-1